bitfinex/quotes_SOLUSD_20241113
["timestamp","ask_amount","ask_price","bid_price","bid_amount"]
[1731520778367,4.5718,218.74,218.67,2.7438]
[1731520778368,0.12549,218.73,218.69,22.07200294]
[1731520778585,0.12549,218.73,218.68,22.07200294]
[1731520779073,0.12549,218.73,218.69,22.07200294]
[1731520779280,8.2928,218.75,218.64,6.8603]
[1731520779281,8.2928,218.75,218.71,22.07200294]
[1731520779994,0.12549,218.74,218.71,22.07200294]
[1731520780287,0.12549,218.74,218.72,22.07200294]
[1731520780481,23.902374,218.74,218.72,22.07200294]
[1731520780686,23.902374,218.74,218.64,6.8603]
[1731520780687,23.902374,218.74,218.71,22.07200294]
[1731520780988,34.93390294,218.81,218.73,22.07200294]
[1731520781292,8.2917,218.81,218.76,22.07200294]
[1731520781587,0.12549,218.8,218.76,21.53944694]
[1731520782084,0.12549,218.8,218.74,22.07200294]
[1731520782294,0.12549,218.74,218.61,2.7445]
[1731520782579,0.12549,218.68,218.61,2.7445]
[1731520782968,0.12549,218.68,218.58,6.8622]
[1731520783180,0.12549,218.64,218.58,6.8622]
[1731520783374,0.12549,218.64,218.59,22.07200294]
[1731520783572,22.07200294,218.69,218.61,22.07200294]
[1731520783796,22.07200294,218.69,218.63,22.07200294]
[1731520783964,0.12549,218.68,218.63,22.07200294]
[1731520784165,0.12549,218.68,218.65,22.07200294]
[1731520784474,22.07200294,218.74,218.67,22.07200294]
[1731520784685,22.07200294,218.72,218.65,22.07200294]
[1731520784871,0.12549,218.71,218.63,22.07200294]
[1731520785572,0.12549,218.71,218.64,6.4031]
[1731520786078,22.07200294,218.75,218.67,22.07200294]
[1731520786281,8.2917,218.81,218.74,22.07200294]
[1731520786476,22.07200294,218.83,218.76,22.07200294]
[1731520786671,0.12549,218.82,218.76,22.07200294]
[1731520786892,22.07200294,218.83,218.76,22.07200294]
[1731520787266,22.07200294,218.86,218.79,22.07200294]
[1731520787503,21.8309,218.95,218.79,22.07200294]
[1731520787504,4.5679,218.92,218.84,22.07200294]
[1731520787801,22.07200294,218.91,218.84,22.07200294]
[1731520787990,0.12549,218.9,218.85,22.07200294]
[1731520788490,30.75660294,218.93,218.85,22.07200294]
[1731520788701,0.12549,218.91,218.84,22.07200294]
[1731520788991,26.63980294,218.92,218.84,22.07200294]
[1731520789590,26.63980294,218.92,218.85,1.8277]
[1731520789971,22.19749294,218.91,218.85,6.397]
[1731520790184,0.12549,218.85,218.72,0.1]
[1731520790373,0.12549,218.79,218.72,22.07200294]
[1731520790570,0.12549,218.79,218.73,22.07200294]
[1731520790889,0.12549,218.79,218.75,4.5713]
[1731520790890,22.19749294,218.79,218.75,4.5713]
[1731520791111,22.19749294,218.79,218.71,1.8289]
[1731520791292,22.07200294,218.9,218.75,22.07200294]
[1731520791293,22.07200294,218.82,218.75,22.07200294]
[1731520791499,22.07200294,218.83,218.76,1.8284]
[1731520791687,22.07200294,218.85,218.77,22.07200294]
[1731520791892,22.07200294,218.88,218.81,22.07200294]
[1731520792197,22.19749294,218.88,218.81,22.07200294]
[1731520792494,22.07200294,218.89,218.82,22.07200294]
[1731520792893,8.6846,218.93,218.83,22.07200294]
[1731520792894,22.07200294,218.91,218.83,22.07200294]
[1731520793275,0.12549,218.9,218.83,22.07200294]
[1731520793494,22.19749294,218.9,218.82,22.07200294]
[1731520793793,22.19749294,218.9,218.82,26.64180294]
[1731520793996,8.6846,218.93,218.89,22.07200294]
[1731520794690,0.12549,218.92,218.88,22.07200294]
[1731520794892,8.6846,218.93,218.88,22.07200294]
[1731520795089,0.12549,218.92,218.89,22.07200294]
[1731520795395,0.12549,218.92,218.9,22.07200294]
[1731520795604,0.12549,218.92,218.89,22.07200294]
[1731520796316,0.12549,218.92,218.87,22.07200294]
[1731520796807,0.12549,218.94,218.87,23.89950294]
[1731520798085,8.6949,218.98,218.92,22.07200294]
[1731520798495,0.12549,218.97,218.92,22.07200294]
[1731520799587,26.63800294,219.01,218.94,22.07200294]
[1731520799981,0.12549,219.0,218.94,22.07200294]
[1731520800281,0.12549,219.0,218.94,23.89890294]
[1731520800583,20.0,219.02,218.95,22.07200294]
[1731520800795,20.0,219.02,218.94,6.3943]
[1731520800796,11.4101,219.11,218.94,6.3943]
[1731520801005,22.07200294,218.99,218.94,4.5674]
[1731520801201,0.12549,218.94,218.88,4.5685]
[1731520801418,0.12549,218.91,218.85,22.07200294]
[1731520801709,0.12549,218.91,218.84,1.8277]
[1731520801905,9.18,218.97,218.84,1.8277]
[1731520802109,23.776884,218.95,218.84,4.5695]
[1731520802331,0.12549,218.94,218.84,4.5695]
[1731520802619,22.19749294,218.94,218.87,22.07200294]
[1731520802910,0.12549,218.92,218.88,22.07200294]
[1731520803336,23.776884,218.93,218.91,22.07200294]
[1731520803496,23.776884,218.93,218.88,22.07200294]
[1731520803701,0.12549,218.92,218.84,4.5695]
[1731520804200,23.776884,218.94,218.89,22.07200294]
[1731520804409,22.07200294,218.99,218.92,22.07200294]
[1731520804621,22.07200294,218.94,218.82,9.2399]
[1731520804800,22.07200294,218.94,218.87,22.07200294]
[1731520804801,22.19749294,218.94,218.87,22.07200294]
[1731520805005,22.19749294,218.94,218.88,22.07200294]
[1731520805006,0.12549,218.94,218.88,22.07200294]
[1731520805199,0.12549,218.94,218.89,22.07200294]
[1731520805513,0.12549,218.94,218.9,1.8273]
[1731520805689,0.12549,218.94,218.93,22.07200294]
[1731520807395,0.12549,218.94,218.9,4.5682]
[1731520807600,0.12549,218.94,218.93,22.07200294]
[1731520808722,0.12549,218.94,218.9,4.5682]
[1731520808723,0.12549,218.94,218.9,26.64020294]
[1731520809410,23.902374,218.94,218.9,4.5682]
[1731520810213,23.902374,218.94,218.9,26.64020294]
[1731520810387,23.902374,218.94,218.92,22.07200294]
[1731520810805,23.902374,218.94,218.91,22.07200294]
[1731520811622,28.469774,218.94,218.87,22.07200294]
[1731520811819,22.07200294,218.89,218.82,4.5698]
[1731520812012,22.07200294,218.89,218.72,22.4769]
[1731520812013,0.12549,218.88,218.8,22.07200294]
[1731520812194,0.12549,218.88,218.81,22.07200294]
[1731520812393,22.07200294,218.91,218.83,22.07200294]
[1731520812611,0.12549,218.89,218.83,22.07200294]
[1731520812813,22.19749294,218.89,218.81,22.07200294]
[1731520813002,0.12549,218.89,218.83,22.07200294]
[1731520813201,20.0,218.92,218.85,22.07200294]
[1731520813405,20.0,218.93,218.87,22.07200294]
[1731520813600,0.12549,218.92,218.88,22.07200294]
[1731520814120,0.12549,218.92,218.87,22.07200294]
[1731520814308,0.12549,218.92,218.88,22.07200294]
[1731520814620,0.12549,218.92,218.87,22.07200294]
[1731520814799,50.54177694,218.94,218.86,22.07200294]
[1731520815002,0.12549,218.92,218.86,22.07200294]
[1731520815321,0.12549,218.92,218.8,15.5391]
[1731520815322,0.12549,218.88,218.82,22.07200294]
[1731520815548,20.0,218.89,218.76,9.1423]
[1731520815549,0.12549,218.84,218.77,22.07200294]
[1731520815695,22.19749294,218.84,218.76,26.64320294]
[1731520815899,22.19749294,218.82,218.75,22.07200294]
[1731520816198,22.19749294,218.82,218.76,22.07200294]
[1731520816199,0.12549,218.82,218.76,22.07200294]
[1731520816795,0.12549,218.82,218.75,22.07200294]
[1731520816995,0.12549,218.79,218.73,22.07200294]
[1731520817420,0.12549,218.79,218.74,22.07200294]
[1731520817600,9.1517,218.93,218.78,44.14400588]
[1731520817926,0.12549,218.94,218.85,0.1]
[1731520818599,0.12549,218.94,218.83,0.1]
[1731520819096,0.12549,218.94,218.91,35.74510061]
[1731520819295,0.12549,218.94,218.92,35.74510061]
[1731520819900,4.69289,218.94,218.89,35.74510061]
[1731520820098,0.12549,218.94,218.89,35.74510061]
[1731520820309,0.12549,218.94,218.91,35.74510061]
[1731520820514,0.12549,218.94,218.92,35.74510061]
[1731520820899,0.12549,218.94,218.9,35.74510061]
[1731520821115,0.12549,218.94,218.93,35.84510061]
[1731520821425,0.12549,218.94,218.93,35.74510061]
[1731520821612,0.12549,218.94,218.86,20.0]
[1731520821803,0.12549,218.94,218.87,1.8275]
[1731520822227,0.12549,218.94,218.84,4.5695]
[1731520822424,4.69299,218.94,218.8,6.3984]
[1731520822630,0.12549,218.91,218.84,35.74510061]
[1731520823239,0.12549,218.91,218.78,35.74510061]
[1731520823240,0.12549,218.85,218.78,35.74510061]
[1731520823817,4.69489,218.85,218.78,35.74510061]
[1731520824517,0.12549,218.83,218.77,35.74510061]
[1731520824851,0.12549,218.83,218.78,35.74510061]
[1731520825032,0.12549,218.94,218.87,0.1]
[1731520825328,0.12549,218.94,218.93,35.74510061]
[1731520828222,0.12549,218.94,218.89,35.74510061]
[1731520828425,0.12549,218.94,218.87,4.5688]
[1731520828426,4.69299,218.94,218.87,35.74510061]
[1731520828603,4.69299,218.94,218.89,35.74510061]
[1731520828604,20.12549,218.94,218.89,35.74510061]
[1731520828803,0.12549,218.94,218.92,35.74510061]
[1731520829005,0.12549,218.94,218.93,35.74510061]
[1731520830306,0.12549,218.94,218.93,37.57210061]
[1731520830618,0.12549,218.94,218.91,35.74510061]
[1731520832204,0.12549,218.94,218.93,35.74510061]
[1731520832403,0.12549,218.94,218.93,37.57210061]
[1731520834006,0.12549,218.94,218.93,35.74510061]
[1731520834210,0.12549,218.94,218.92,35.74510061]
[1731520834411,0.12549,218.94,218.91,35.74510061]
[1731520835316,4.69309,218.94,218.89,35.74510061]
[1731520835710,4.69309,218.94,218.91,35.74510061]
[1731520835711,0.12549,218.94,218.91,35.74510061]
[1731520837022,0.12549,218.94,218.87,35.74510061]
[1731520837023,4.69299,218.94,218.87,35.74510061]
[1731520837427,4.69299,218.94,218.85,35.74510061]
[1731520837620,0.12549,218.92,218.85,35.74510061]
[1731520838629,0.12549,218.9,218.85,35.74510061]
[1731520838831,0.12549,218.9,218.87,35.74510061]
[1731520839145,0.12549,218.9,218.84,1.8277]
[1731520839146,0.12549,218.94,218.89,71.49020122]
[1731520839341,0.12549,218.94,218.93,35.74510061]
[1731520840931,0.12549,218.94,218.93,37.57210061]
[1731520841830,0.12549,218.94,218.93,35.74510061]
[1731520845134,40.43809061,218.94,218.86,35.74510061]
[1731520845515,0.12549,218.92,218.86,35.74510061]
[1731520846311,4.5677,218.93,218.89,35.74510061]
[1731520846533,4.5677,218.93,218.88,35.74510061]
[1731520846912,0.12549,218.92,218.88,22.00535131]
[1731520847227,0.12549,218.92,218.8,15.5391]
[1731520847228,0.12549,218.94,218.87,22.00535131]
[1731520847529,0.12549,218.91,218.88,22.00535131]
[1731520848334,0.12549,218.91,218.81,6.3981]
[1731520848524,0.12549,218.91,218.84,22.00535131]
[1731520848720,22.13084131,218.91,218.84,22.00535131]
[1731520849242,22.13084131,218.85,218.72,20.529]
[1731520849433,20.0,218.8,218.74,22.00535131]
[1731520849620,0.12549,218.79,218.74,22.00535131]
[1731520849812,0.12549,218.79,218.7,6.4013]
[1731520850012,0.12549,218.79,218.73,22.00535131]
[1731520850234,15.9933,218.84,218.76,22.00535131]
[1731520850235,20.0,218.81,218.76,22.00535131]
[1731520850549,24.5685,218.89,218.8,22.00535131]
[1731520850713,0.12549,218.88,218.81,22.00535131]
[1731520851332,0.12549,218.86,218.81,22.00535131]
[1731520851635,0.12549,218.86,218.82,22.00535131]
[1731520852515,0.12549,218.84,218.81,22.00535131]
[1731520852921,0.12549,218.84,218.8,22.00535131]
[1731520853121,0.12549,218.84,218.79,22.00535131]
[1731520853335,0.12549,218.84,218.73,1.8287]
[1731520853336,22.13084131,218.84,218.73,1.8287]
[1731520853523,0.12549,218.82,218.76,22.00535131]
[1731520854118,20.12549,218.8,218.73,22.00535131]
[1731520854330,42.13084131,218.8,218.7,1.8289]
[1731520854632,0.12549,218.78,218.74,22.00535131]
[1731520855136,0.12549,218.78,218.7,4.5724]
[1731520855137,0.12549,218.78,218.75,22.00535131]
[1731520856017,0.12549,218.77,218.75,22.00535131]
[1731520858442,20.0,218.82,218.7,4.5724]
[1731520858443,26.70094131,218.81,218.7,4.5724]
[1731520858645,0.12549,218.79,218.74,22.00535131]
[1731520859625,8.25129,218.79,218.7,4.5724]
[1731520859963,20.12549,218.73,218.61,6.404]
[1731520860742,22.03430238,218.74,218.61,6.404]
[1731520860743,0.12549,218.74,218.61,6.404]
[1731520861044,20.0,218.77,218.61,15.6527]
[1731520861255,4.5708,218.78,218.62,0.1]
[1731520861743,0.12549,218.77,218.63,6.4034]
[1731520862454,20.12549,218.77,218.63,6.4034]
[1731520862751,20.12549,218.77,218.63,15.5512]
[1731520863322,22.03430238,218.76,218.63,6.4034]
[1731520863620,0.12549,218.75,218.63,6.4034]
[1731520863820,8.1258,218.79,218.64,0.1]
[1731520864019,4.5705,218.8,218.67,20.4363]
[1731520864238,8.6977,218.84,218.7,0.1]
[1731520864239,13.2672,218.84,218.7,0.1]
[1731520864439,8.6977,218.84,218.7,0.1]
[1731520864822,4.5693,218.86,218.7,0.1]
[1731520865423,0.12549,218.85,218.7,0.1]
[1731520865630,4.69479,218.85,218.71,6.4011]
[1731520866625,4.5689,218.87,218.71,15.5456]
[1731520866953,0.12549,218.83,218.71,6.4011]
[1731520867648,0.12549,218.84,218.71,6.4011]
[1731520867944,0.12549,218.82,218.71,4.5722]
[1731520868143,22.15979238,218.78,218.67,4.573]
[1731520868349,20.0,218.77,218.67,4.573]
[1731520868644,20.0,218.72,218.57,4.556]
[1731520868845,20.0,218.72,218.58,1.8299]
[1731520869738,4.5722,218.71,218.58,6.4047]
[1731520870327,26.60650238,218.71,218.58,6.4047]
[1731520870527,20.0,218.7,218.58,6.4047]
[1731520870938,23.776884,218.69,218.58,4.2047]
[1731520871747,4.5722,218.72,218.59,0.1]
[1731520871935,4.5722,218.72,218.58,6.0346]
[1731520872240,0.12549,218.69,218.58,6.0346]
[1731520872929,23.902374,218.69,218.58,6.0346]
[1731520873127,23.902374,218.67,218.58,6.0346]
[1731520873953,23.776884,218.67,218.58,6.0346]
[1731520874154,4.5714,218.75,218.59,8.3688]
[1731520874338,33.8217,218.77,218.59,8.3688]
[1731520874339,4.5711,218.77,218.61,0.1]
[1731520874542,8.2863,218.79,218.63,0.1]
[1731520874847,0.12549,218.78,218.63,0.1]
[1731520875149,0.12549,218.76,218.64,6.4031]
[1731520875654,4.571,218.77,218.64,6.4031]
[1731520876224,4.5705,218.79,218.65,0.1]
[1731520876455,4.5705,218.79,218.64,15.5505]
[1731520876456,13.0916,218.84,218.69,21.1372]
[1731520877033,0.12549,218.83,218.69,21.1372]
[1731520877233,35.91071018,218.83,218.69,21.1372]
[1731520877430,13.0916,218.84,218.69,21.1372]
[1731520877665,38.75326333,218.89,218.7,8.8538]
[1731520877666,4.5687,218.88,218.7,8.8538]
[1731520877979,0.12549,218.87,218.7,8.8538]
[1731520878258,4.5687,218.88,218.71,0.1]
[1731520878454,0.12549,218.87,218.72,15.5449]
[1731520878641,13.0904,218.89,218.72,15.5449]
[1731520879027,4.5685,218.89,218.74,0.1]
[1731520879441,4.5685,218.89,218.72,15.5449]
[1731520879624,4.5685,218.89,218.74,0.1]
[1731520879829,50.37548621,218.94,218.72,15.5449]
[1731520879830,0.12549,218.88,218.72,15.5449]
[1731520880038,23.902374,218.88,218.72,15.6449]
[1731520880238,0.12549,218.86,218.72,15.5449]
[1731520880441,23.902374,218.86,218.72,15.5449]
[1731520880865,15.9882,218.91,218.72,6.4008]
[1731520880866,59.68759418,218.84,218.72,6.4008]
[1731520881157,0.12549,218.8,218.7,8.8538]
[1731520881368,23.902374,218.78,218.69,22.9662]
[1731520881657,0.12549,218.76,218.69,22.9662]
[1731520881855,23.776884,218.74,218.69,21.1372]
[1731520882037,0.12549,218.73,218.65,8.3739]
[1731520882250,0.12549,218.71,218.64,21.3465]
[1731520882440,0.12549,218.71,218.64,23.1759]
[1731520883034,0.12549,218.71,218.64,27.7496]
[1731520883236,23.776884,218.77,218.64,27.7496]
[1731520883453,0.12549,218.76,218.64,36.897]
[1731520883750,0.12549,218.76,218.64,27.7496]
[1731520883943,0.12549,218.74,218.64,27.7496]
[1731520884836,8.8942,218.82,218.66,0.1]
[1731520885054,4.5695,218.84,218.68,0.1]
[1731520885638,4.5695,218.84,218.67,0.1]
[1731520885639,0.12549,218.83,218.67,0.1]
[1731520885965,35.91071018,218.81,218.66,15.5492]
[1731520886255,0.12549,218.81,218.66,15.6492]
[1731520886452,23.902374,218.79,218.66,15.6492]
[1731520886842,0.12549,218.79,218.66,15.6492]
[1731520887056,23.776884,218.81,218.66,15.6492]
[1731520887256,0.12549,218.8,218.66,15.7492]
[1731520887564,0.12549,218.8,218.66,15.6492]
[1731520887737,0.12549,218.78,218.66,15.6492]
[1731520888071,19.7262,218.87,218.66,15.6492]
[1731520888072,8.3035,218.87,218.7,0.1]
[1731520888356,35.78522018,218.84,218.71,8.7259]
[1731520888561,35.91071018,218.85,218.71,8.7259]
[1731520888766,0.12549,218.85,218.79,35.78641629]
[1731520888971,0.12549,218.85,218.71,8.7259]
[1731520888972,0.12549,218.85,218.8,35.78641629]
[1731520889144,35.78641629,218.91,218.84,35.78641629]
[1731520889452,40.35461629,218.9,218.83,35.78641629]
[1731520889659,4.5682,218.9,218.83,35.78641629]
[1731520889835,40.35461629,218.9,218.82,35.78641629]
[1731520890032,35.91190629,218.89,218.82,35.78641629]
[1731520890340,4.5682,218.9,218.75,26.546]
[1731520890341,0.12549,218.86,218.8,35.78641629]
[1731520890543,0.12549,218.86,218.82,35.78641629]
[1731520890768,4.5682,218.9,218.85,35.78641629]
[1731520890976,4.5682,218.9,218.75,37.5173]
[1731520890977,4.5682,218.9,218.75,28.3745]
[1731520891153,4.5682,218.9,218.75,28.4745]
[1731520891536,4.5682,218.9,218.75,28.3745]
[1731520891850,0.12549,218.89,218.75,28.4745]
[1731520892057,4.69399,218.89,218.84,35.78641629]
[1731520892446,0.12549,218.87,218.84,35.78641629]
[1731520893145,4.5682,218.91,218.86,35.78641629]
[1731520893760,0.12549,218.9,218.86,35.78641629]
[1731520894487,0.12549,218.9,218.85,35.78641629]
[1731520894488,23.902374,218.89,218.85,35.78641629]
[1731520894766,23.902374,218.89,218.84,35.78641629]
[1731520895461,28.344484,218.93,218.88,35.78641629]
[1731520895665,0.12549,218.92,218.88,35.78641629]
[1731520896042,0.12549,218.92,218.87,35.78641629]
[1731520896545,23.902374,218.9,218.87,35.78641629]
[1731520896745,23.902374,218.9,218.87,22.00641102]
[1731520897368,28.470674,218.9,218.8,1.8281]
[1731520897562,28.470674,218.9,218.85,22.00641102]
[1731520897863,28.470674,218.9,218.86,22.00641102]
[1731520898160,23.902374,218.9,218.86,22.00641102]
[1731520898362,23.902374,218.91,218.86,22.00641102]
[1731520898665,28.470474,218.91,218.86,22.00641102]
[1731520899366,28.470474,218.91,218.83,22.00641102]
[1731520899367,50.47688502,218.91,218.83,22.00641102]
[1731520899746,50.47688502,218.91,218.85,22.00641102]
[1731520899747,28.470474,218.91,218.85,22.00641102]
[1731520900149,50.47688502,218.91,218.84,22.00641102]
[1731520900359,50.47688502,218.91,218.83,22.00641102]
[1731520900960,45.90878502,218.89,218.81,22.00641102]
[1731520901266,23.902374,218.87,218.82,22.00641102]
[1731520901472,0.12549,218.87,218.82,22.00641102]
[1731520902168,0.12549,218.84,218.77,22.00641102]
[1731520902475,23.902374,218.82,218.75,22.00641102]
[1731520902854,23.902374,218.8,218.73,22.00641102]
[1731520903252,23.902374,218.8,218.73,21.87924335]
[1731520903561,0.12549,218.76,218.7,22.00641102]
[1731520904471,0.12549,218.76,218.72,22.00641102]
[1731520904673,0.12549,218.76,218.69,4.5726]
[1731520904674,0.12549,218.76,218.7,22.00641102]
[1731520904860,0.12549,218.74,218.7,22.00641102]
[1731520905176,0.12549,218.74,218.72,22.00641102]
[1731520905958,0.12549,218.74,218.7,22.00641102]
[1731520906664,0.12549,218.72,218.68,22.00641102]
[1731520907074,0.12549,218.7,218.64,22.00641102]
[1731520907469,0.12549,218.7,218.68,22.00641102]
[1731520907664,23.776884,218.72,218.68,22.00641102]
[1731520907982,23.776884,218.75,218.71,22.00641102]
[1731520908160,0.12549,218.74,218.71,22.00641102]
[1731520908363,8.3162,218.79,218.73,22.00641102]
[1731520908573,8.3162,218.79,218.75,22.00641102]
[1731520908789,4.5695,218.84,218.77,22.00641102]
[1731520909087,0.12549,218.83,218.75,22.00641102]
[1731520909280,0.12549,218.83,218.77,22.00641102]
[1731520909507,4.5695,218.84,218.79,22.00641102]
[1731520910082,0.12549,218.83,218.79,22.00641102]
[1731520910459,0.12549,218.83,218.77,22.00641102]
[1731520910664,0.12549,218.81,218.75,22.00641102]
[1731520910871,23.902374,218.81,218.75,22.00641102]
[1731520911081,23.902374,218.79,218.75,22.00641102]
[1731520911965,23.902374,218.77,218.72,22.00641102]
[1731520912764,23.902374,218.77,218.7,22.00641102]
[1731520913284,23.902374,218.71,218.64,22.00641102]
[1731520914066,23.902374,218.69,218.64,22.00641102]
[1731520914285,23.902374,218.69,218.62,22.00641102]
[1731520914917,23.902374,218.69,218.64,22.00641102]
[1731520915064,13.2131,218.74,218.67,22.00641102]
[1731520915274,4.5708,218.78,218.71,22.00641102]
[1731520915557,26.57721102,218.78,218.71,22.00641102]
[1731520916089,0.12549,218.75,218.69,22.00641102]
[1731520916793,0.12549,218.75,218.71,22.00641102]
[1731520917086,23.776884,218.76,218.73,22.00641102]
[1731520917379,24.5708,218.78,218.73,22.00641102]
[1731520917568,0.12549,218.77,218.73,22.00641102]
[1731520917780,0.12549,218.77,218.71,22.00641102]
[1731520918082,24.5708,218.78,218.59,0.1]
[1731520918083,0.12549,218.75,218.61,9.1486]
[1731520918277,0.12549,218.75,218.62,20.0]
[1731520918579,23.902374,218.7,218.6,4.5745]
[1731520918783,23.902374,218.68,218.6,6.4043]
[1731520919474,23.902374,218.68,218.6,4.5745]
[1731520919661,23.902374,218.68,218.6,6.4043]
[1731520920268,0.12549,218.66,218.56,20.0]
[1731520920464,23.902374,218.66,218.56,20.0]
[1731520921260,23.902374,218.66,218.55,9.1508]
[1731520921580,23.902374,218.64,218.47,8.3789]
[1731520921772,0.12549,218.62,218.48,0.1]
[1731520921965,23.902374,218.62,218.48,0.1]
[1731520922160,23.902374,218.62,218.52,6.4065]
[1731520922420,23.902374,218.62,218.54,23.6304]
[1731520922693,23.902374,218.62,218.54,1.8303]
[1731520923065,23.776884,218.64,218.54,6.4061]
[1731520923388,12.7565,218.68,218.56,6.4055]
[1731520923684,0.12549,218.67,218.57,20.0]
[1731520924380,0.12549,218.67,218.56,3.4315]
[1731520924589,23.902374,218.67,218.56,3.4315]
[1731520925083,45.8152588,218.67,218.56,3.4315]
[1731520925291,45.8152588,218.67,218.51,11.7698]
[1731520925292,0.12549,218.66,218.51,11.7698]
[1731520925481,8.1836,218.68,218.53,0.1]
[1731520925671,12.7565,218.68,218.51,11.6698]
[1731520925870,20.12549,218.67,218.51,11.6698]
[1731520926070,22.0383748,218.66,218.51,11.6698]
[1731520926277,0.12549,218.65,218.51,11.6698]
[1731520926582,23.902374,218.65,218.51,18.5344]
[1731520926993,23.776884,218.67,218.51,18.5344]
[1731520927511,4.69879,218.66,218.52,20.0]
[1731520927994,22.1638648,218.64,218.52,20.0]
[1731520928166,0.12549,218.62,218.52,20.0]
[1731520928371,23.776884,218.63,218.51,11.6698]
[1731520928372,0.12549,218.58,218.51,3.4323]
[1731520928583,0.12549,218.58,218.49,4.8056]
[1731520929971,4.70059,218.58,218.49,4.8056]
[1731520930172,0.12549,218.56,218.49,4.8056]
[1731520930577,23.776884,218.62,218.49,24.8056]
[1731520930896,0.12549,218.59,218.49,4.8056]
[1731520931595,0.12549,218.58,218.49,4.8056]
[1731520932078,0.12549,218.6,218.49,4.8056]
[1731520932480,0.12549,218.6,218.49,24.8056]
[1731520932691,23.902374,218.6,218.49,24.8056]
[1731520932995,4.5731,218.67,218.5,20.91505114]
[1731520933292,4.5731,218.67,218.51,0.1]
[1731520933496,0.12549,218.66,218.5,20.91505114]
[1731520933880,8.3777,218.74,218.55,20.0]
[1731520934084,4.5718,218.73,218.57,20.0]
[1731520934407,22.0383748,218.72,218.57,20.0]
[1731520934574,22.0383748,218.7,218.57,20.0]
[1731520934983,22.0383748,218.72,218.57,20.0]
[1731520935287,13.96738418,218.74,218.58,8.2833]
[1731520935288,8.3777,218.74,218.58,8.2833]
[1731520935601,12.9494,218.74,218.59,20.0]
[1731520935803,0.12549,218.73,218.59,20.0]
[1731520936100,12.9494,218.74,218.59,20.0]
[1731520936101,0.12549,218.71,218.6,4.8032]
[1731520936682,4.572,218.72,218.6,4.8032]
[1731520937896,0.12549,218.7,218.6,4.8032]
[1731520939093,0.12549,218.68,218.6,4.8032]
[1731520940498,23.902374,218.7,218.6,4.8032]
[1731520941306,28.474874,218.7,218.6,4.8032]
[1731520943114,23.902374,218.7,218.6,4.8032]
[1731520943403,4.5717,218.74,218.6,4.8032]
[1731520943620,4.5717,218.74,218.61,20.4981]
[1731520943788,4.5708,218.78,218.61,20.5981]
[1731520944202,0.12549,218.77,218.62,20.0]
[1731520944618,4.5708,218.78,218.62,20.0]
[1731520944809,4.5708,218.78,218.63,0.1]
[1731520945006,30.0644748,218.85,218.67,28.2572]
[1731520945201,4.5695,218.84,218.68,27.7737]
[1731520946216,23.776884,218.83,218.68,27.7737]
[1731520946395,4.5699,218.82,218.68,27.7737]
[1731520946589,0.12549,218.8,218.68,27.7737]
[1731520947292,24.77063828,218.84,218.68,28.78790453]
[1731520947613,26.6068748,218.89,218.7,0.1]
[1731520947820,4.5685,218.89,218.72,0.2]
[1731520948212,0.12549,218.88,218.72,20.2]
[1731520948516,4.5685,218.89,218.74,20.0]
[1731520949092,23.902374,218.88,218.74,20.0]
[1731520949607,4.5689,218.87,218.76,28.3471]
[1731520949793,4.5689,218.87,218.77,20.0]
[1731520950217,0.12549,218.86,218.77,20.0]
[1731520950909,0.12549,218.86,218.78,3.1995]
[1731520951218,23.902374,218.86,218.78,3.1995]
[1731520952695,28.471474,218.86,218.78,2.2854]
[1731520953796,28.471574,218.86,218.78,2.2854]
[1731520954013,28.471574,218.86,218.77,20.0]
[1731520954511,4.77063828,218.9,218.77,20.1]
[1731520954723,22.0383748,218.93,218.77,20.0]
[1731520954937,0.12549,218.92,218.77,20.0]
[1731520955096,9.46372828,218.94,218.77,20.0]
[1731520956008,0.12549,218.9,218.77,20.0]